bitfinex-derivatives/quotes_ETHF0:USTF0_20250110
["timestamp","ask_amount","ask_price","bid_price","bid_amount"]
[1736482014078,0.4616,3256.1,3255.8,0.78598]
[1736482015978,0.4616,3256.1,3255.9,0.30718]
[1736482016478,0.4616,3256.1,3255.8,0.4788]
[1736482016781,0.76876,3256.1,3255.7,3.95649]
[1736482017574,0.4616,3256.1,3255.7,3.95649]
[1736482017777,0.30717,3256.0,3255.7,3.95649]
[1736482018074,0.4616,3256.1,3255.7,3.6493]
[1736482018279,0.4616,3256.1,3255.8,0.30718]
[1736482018478,0.4616,3256.1,3255.7,3.6493]
[1736482018987,3.2078,3256.5,3255.9,1.91379514]
[1736482019183,3.2078,3256.5,3256.3,0.30713]
[1736482019880,3.51492,3256.5,3256.1,0.30716]
[1736482020082,3.2078,3256.5,3256.2,0.30714]
[1736482020380,3.2078,3256.5,3256.4,0.30713]
[1736482020983,3.2078,3256.5,3256.2,0.30714]
[1736482021379,3.2078,3256.5,3256.3,0.30713]
[1736482021777,3.2078,3256.5,3256.1,40.8]
[1736482021976,3.2078,3256.5,3256.3,0.30714]
[1736482022182,3.6724,3256.9,3256.3,3.2078]
[1736482022383,3.2078,3256.9,3256.8,0.30709]
[1736482022984,0.4468,3257.2,3257.0,0.30707]
[1736482023185,0.4468,3257.2,3256.8,3.2078]
[1736482023390,0.75386,3257.2,3256.8,3.51488]
[1736482023792,0.4468,3257.2,3256.8,3.2078]
[1736482024089,0.4704,3257.4,3256.8,3.2078]
[1736482024394,0.4468,3257.4,3257.3,0.30704]
[1736482025087,0.4468,3257.4,3257.2,3.2078]
[1736482026184,1.248,3257.8,3257.2,3.2078]
[1736482026490,0.30701,3257.7,3257.3,0.30704]
[1736482026991,0.444,3257.9,3257.3,0.30704]
[1736482027185,0.444,3257.9,3257.2,3.51485]
[1736482027186,0.30702,3257.6,3257.2,3.51485]
[1736482027384,0.30703,3257.5,3257.2,3.2078]
[1736482027693,0.30707,3257.0,3256.6,0.30711]
[1736482027994,0.75108,3256.9,3256.5,0.30711]
[1736482028189,0.444,3256.9,3256.6,0.30711]
[1736482029291,0.75109,3256.9,3256.5,0.30711]
[1736482029882,0.75109,3256.9,3256.4,3.2078]
[1736482030092,0.75109,3256.9,3256.6,0.30711]
[1736482030693,0.75109,3256.9,3256.4,3.2078]
[1736482030694,0.7664,3256.8,3256.5,0.30712]
[1736482030992,0.30711,3256.6,3256.3,0.30714]
[1736482031989,0.4593,3256.8,3256.2,0.9058]
[1736482032284,2.37309514,3256.8,3256.1,40.8]
[1736482032484,0.30714,3256.4,3256.1,40.8]
[1736482032685,0.30714,3256.4,3256.1,41.10715]
[1736482032986,0.30712,3256.6,3256.2,0.30714]
[1736482033186,0.30712,3256.6,3256.2,0.75574]
[1736482034794,0.30713,3256.5,3256.2,0.4486]
[1736482035296,0.30711,3256.6,3256.2,0.75574]
[1736482036591,0.4697,3256.7,3256.4,0.30712]
[1736482036897,0.3071,3256.7,3256.4,0.30713]
[1736482037197,0.3071,3256.7,3256.3,0.75783]
[1736482038793,0.4593,3256.8,3256.3,0.4507]
[1736482039089,0.30711,3256.7,3256.3,0.75784]
[1736482040196,0.30712,3256.6,3256.3,0.4507]
[1736482042287,0.30712,3256.6,3256.2,0.75574]
[1736482042288,1.91379514,3256.5,3256.2,0.4486]
[1736482042487,0.30714,3256.3,3255.9,0.74247]
[1736482042888,0.30717,3256.0,3255.6,0.7698]
[1736482043090,0.30717,3256.0,3255.6,1.2051]
[1736482043489,2.82209514,3256.2,3255.6,0.8979]
[1736482043688,0.30718,3255.9,3255.6,0.8979]
[1736482043999,0.30721,3255.6,3255.2,0.30724]
[1736482044294,3.2078,3255.8,3255.0,3.6493]
[1736482044492,1.248,3255.9,3255.8,0.30719]
[1736482044702,0.30714,3256.3,3255.9,0.30717]
[1736482045995,0.30715,3256.2,3255.9,0.30717]
[1736482046899,0.30715,3256.2,3255.6,1.3568]
[1736482046900,0.30715,3256.2,3255.8,0.30718]
[1736482047195,0.30715,3256.2,3255.6,1.3568]
[1736482047196,0.30715,3256.2,3255.7,0.30719]
[1736482047391,0.30715,3256.2,3255.8,0.30718]
[1736482047796,0.30716,3256.1,3255.8,0.30718]
[1736482049698,0.30717,3256.0,3255.8,0.30718]
[1736482049897,0.30717,3256.1,3255.8,0.30718]
[1736482050498,0.30717,3256.1,3255.9,3.2078]
[1736482050698,0.433,3256.5,3255.9,3.2078]
[1736482050894,0.433,3256.5,3256.0,0.30717]
[1736482051193,0.30714,3256.3,3256.0,0.30716]
[1736482051395,0.30715,3256.2,3255.9,3.51497]
[1736482051592,0.433,3256.5,3256.0,41.10716]
[1736482051790,0.74013,3256.5,3256.1,0.30716]
[1736482051986,0.74013,3256.5,3256.2,0.4522]
[1736482051987,0.30713,3256.4,3256.2,0.4522]
[1736482053197,0.74012,3256.5,3256.2,0.75935]
[1736482053398,0.74012,3256.5,3256.3,0.4359]
[1736482053789,0.433,3256.5,3256.3,0.4359]
[1736482053995,0.30713,3256.4,3256.3,0.4359]
[1736482056594,3.6695,3256.8,3256.4,0.30713]
[1736482056790,0.30711,3256.7,3256.3,1.19183]
[1736482058695,3.6695,3256.8,3256.3,0.8847]
[1736482058894,1.55508,3256.9,3256.4,0.30713]
[1736482059096,1.55508,3256.9,3256.3,0.8847]
[1736482059097,1.55508,3256.9,3256.6,3.51491]
[1736482059496,5.58169514,3257.3,3256.6,3.2078]
[1736482059701,0.05132854,3257.1,3256.6,3.2078]
[1736482059898,0.05132854,3257.1,3257.0,0.30707]
[1736482060199,0.30706,3257.1,3256.6,3.2078]
[1736482060392,0.30706,3257.2,3256.8,0.30708]
[1736482060591,5.12159514,3257.3,3256.6,3.2078]
[1736482060800,0.30707,3257.1,3256.7,0.30709]
[1736482061604,0.30707,3257.1,3256.8,0.30709]
[1736482061801,0.30708,3257.0,3256.7,0.3071]
[1736482062005,5.58639514,3257.3,3256.6,3.2078]
[1736482062302,0.3071,3256.7,3256.6,3.2078]
[1736482062502,0.3071,3256.7,3256.4,0.30712]
[1736482062697,0.30709,3256.8,3256.4,0.30712]
[1736482066098,0.76088,3256.9,3256.6,0.30711]
[1736482066303,0.30708,3256.9,3256.6,0.30711]
[1736482066703,0.30708,3256.9,3256.5,0.30711]
[1736482066900,3.6784,3257.2,3256.5,0.30711]
[1736482067107,0.30707,3257.0,3256.4,0.30713]
[1736482067405,0.3071,3256.8,3256.4,0.30713]
[1736482068902,0.3071,3256.8,3256.3,4.0925]
[1736482069103,0.30707,3257.0,3256.6,0.30711]
[1736482069303,0.30708,3256.9,3256.3,4.0925]
[1736482069611,0.30708,3256.9,3256.5,0.30711]
[1736482070106,0.3071,3256.8,3256.4,0.30712]
[1736482070404,0.30709,3256.9,3256.5,0.30711]
[1736482072208,1.91379514,3257.1,3256.3,4.0925]
[1736482072611,0.30713,3256.4,3256.3,3.6437]
[1736482072802,0.30713,3256.4,3256.3,0.4359]
[1736482076505,1.91379514,3256.5,3256.3,0.4359]
[1736482076808,0.77561,3256.6,3256.3,0.74304]
[1736482077007,0.30711,3256.6,3256.3,0.74304]
[1736482077509,0.4727,3256.7,3256.3,0.4359]
[1736482078011,0.30714,3256.3,3256.2,3.2078]
[1736482079005,0.4727,3256.7,3256.2,3.2078]
[1736482079212,0.30711,3256.6,3256.3,0.30713]
[1736482079911,0.7798,3256.7,3256.4,0.30713]
[1736482080109,0.7798,3256.7,3256.3,0.30713]
[1736482081013,0.30712,3256.5,3256.2,3.51494]
[1736482081213,0.77981,3256.7,3256.3,0.30713]
[1736482081407,0.30712,3256.6,3256.2,3.51494]
[1736482081808,0.30712,3256.5,3256.2,3.51494]
[1736482082108,0.4727,3256.7,3256.2,3.51494]
[1736482082315,0.30712,3256.5,3256.2,3.51494]
[1736482082911,0.4727,3256.7,3256.2,3.51494]
[1736482083110,0.30712,3256.6,3256.3,0.30713]
[1736482083310,0.30712,3256.6,3256.2,3.2078]
[1736482083508,0.30712,3256.5,3256.2,3.51494]
[1736482085119,0.4727,3256.7,3256.2,3.2078]
[1736482085314,0.30714,3256.3,3256.2,3.2078]
[1736482086910,0.30715,3256.2,3256.1,0.4738]
[1736482087113,0.30718,3255.9,3255.5,0.30721]
[1736482087421,0.30717,3256.0,3255.6,0.3072]
[1736482087812,0.909,3256.1,3255.5,40.8]
[1736482088011,0.30719,3255.8,3255.4,3.51501]
[1736482088319,0.30719,3255.8,3255.5,0.30721]
[1736482088815,3.2078,3255.8,3255.3,1.3894]
[1736482089013,0.30722,3255.4,3255.3,1.3894]
[1736482094225,0.30722,3255.4,3255.3,0.9189]
[1736482096322,3.2078,3255.8,3255.3,0.9189]
[1736482096621,0.909,3256.1,3255.4,3.6736]
[1736482096922,3.2078,3256.2,3255.4,3.6736]
[1736482096923,0.30715,3256.2,3255.9,0.30717]
[1736482097123,0.30715,3256.2,3256.0,0.9128]
[1736482097318,0.30715,3256.2,3256.0,41.7128]
[1736482097721,2.1583,3256.4,3256.0,41.7128]
[1736482097923,1.248,3256.4,3256.0,42.1786]
[1736482098226,0.30714,3256.3,3256.0,42.48576]
[1736482098634,0.30714,3256.3,3256.0,42.1786]
[1736482099519,0.30714,3256.3,3256.0,42.48576]
[1736482099719,0.30713,3256.4,3256.1,0.30716]
[1736482099917,4.4558,3256.7,3256.0,42.48576]
[1736482100122,0.05133729,3256.6,3256.0,42.48576]
[1736482100319,0.30714,3256.4,3256.0,42.48576]
[1736482100921,0.30714,3256.4,3256.0,1.68576]
[1736482101525,0.30712,3256.6,3256.2,0.30715]
[1736482101717,4.4558,3256.7,3256.2,0.30715]
[1736482101923,0.30712,3256.5,3256.2,0.30715]
[1736482102123,0.30712,3256.6,3256.2,0.30715]
[1736482103229,3.2078,3256.7,3256.2,0.30715]
[1736482103429,3.2078,3256.7,3256.0,1.3786]
[1736482103631,3.2078,3256.7,3256.4,0.30712]
[1736482103833,3.2078,3256.7,3256.5,0.4775]
[1736482104019,3.51491,3256.7,3256.5,0.4775]
[1736482104224,3.2078,3256.7,3256.5,0.4775]
[1736482104425,0.30711,3256.6,3256.5,0.4775]
[1736482106727,3.51491,3256.7,3256.5,0.4775]
[1736482107132,3.16179514,3256.8,3256.5,0.4775]
[1736482107133,0.30711,3256.6,3256.5,0.4775]
[1736482108636,3.2078,3257.1,3256.5,0.4775]
[1736482108933,3.2078,3257.1,3256.8,0.30708]
[1736482110931,3.51487,3257.1,3256.6,0.8875]
[1736482111228,3.2078,3257.1,3256.6,0.8875]
[1736482111427,0.30708,3257.0,3256.6,0.8875]
[1736482111831,3.2078,3257.1,3256.6,0.8875]
[1736482112135,5.12159514,3257.5,3256.8,3.2078]
[1736482112328,0.30704,3257.3,3256.8,3.51489]
[1736482112532,0.30703,3257.4,3256.8,3.51489]
[1736482112734,0.30707,3257.1,3256.8,3.2078]
[1736482112938,0.30707,3257.1,3256.8,3.51489]
[1736482113938,0.30707,3257.1,3256.8,3.2078]
[1736482114943,0.30707,3257.1,3256.8,3.51489]
[1736482115242,0.30706,3257.2,3256.8,3.51489]
[1736482115430,0.30707,3257.1,3256.8,3.51489]
[1736482115632,0.30707,3257.1,3256.8,3.2078]
[1736482116237,0.30707,3257.1,3256.8,3.51489]
[1736482117339,0.30705,3257.3,3256.9,0.30708]
[1736482117637,5.12159514,3257.5,3256.9,0.30708]
[1736482117831,0.30705,3257.3,3257.0,0.74727]
[1736482118341,0.30704,3257.4,3257.0,0.74727]
[1736482118638,0.30705,3257.3,3257.0,0.4402]
[1736482119040,0.30705,3257.3,3257.0,0.74727]
[1736482119342,0.30705,3257.3,3257.0,0.4402]
[1736482122140,5.12159514,3257.5,3257.0,0.4402]
[1736482122341,0.30705,3257.2,3257.0,0.4402]
[1736482127838,1.91379514,3257.5,3257.0,0.4402]
[1736482128043,0.30706,3257.1,3257.0,0.4402]
[1736482128243,0.30706,3257.2,3257.0,0.4402]
[1736482128439,0.30706,3257.1,3257.0,0.4402]
[1736482128655,0.30708,3256.9,3256.8,3.2078]
[1736482129347,0.30712,3256.5,3256.2,0.77014]
[1736482129647,0.30712,3256.5,3256.2,0.77015]
[1736482129849,0.30712,3256.5,3256.3,40.8]
[1736482131347,0.30712,3256.6,3256.3,40.8]
[1736482131547,0.30712,3256.5,3256.3,40.8]
[1736482132750,0.30711,3256.6,3256.3,40.8]
[1736482132950,0.30712,3256.5,3256.3,40.8]
[1736482135452,0.30713,3256.4,3256.3,40.8]
[1736482135755,0.30712,3256.5,3256.3,40.8]
[1736482136755,0.30713,3256.4,3256.3,40.8]
[1736482140056,3.2078,3256.4,3255.5,3.51501]
[1736482140260,1.91379514,3256.0,3255.6,0.4513]
[1736482140854,0.30719,3255.8,3255.6,0.4513]
[1736482141652,1.91379514,3256.0,3255.6,0.4513]
[1736482141854,0.30719,3255.7,3255.6,0.4513]
[1736482142060,1.91379514,3255.7,3255.5,44.0078]
[1736482142254,1.2059,3255.6,3255.5,44.0078]
[1736482142458,1.6566,3255.6,3255.5,3.2078]
[1736482143050,1.2,3255.6,3255.2,41.10724]
[1736482143754,0.30721,3255.5,3255.2,41.10724]
[1736482143954,0.8928,3255.6,3255.2,41.10724]
[1736482144155,1.20001,3255.6,3255.2,41.10724]
[1736482144862,0.8928,3255.6,3255.2,40.8]
[1736482145161,1.20001,3255.6,3255.2,41.10724]
[1736482145554,0.8928,3255.6,3255.2,40.8]
[1736482145754,0.30719,3255.8,3255.3,0.30723]
[1736482146060,0.30719,3255.8,3255.4,0.30722]
[1736482146360,3.51498,3255.9,3255.4,0.30722]
[1736482146557,0.30715,3256.2,3255.8,0.30718]
[1736482146760,2.6503,3256.4,3255.9,0.4679]
[1736482146952,0.30717,3256.0,3255.9,0.4679]
[1736482147862,5.69523,3256.4,3256.0,0.30717]
[1736482148059,5.69523,3256.4,3256.0,0.77296]
[1736482148254,5.3881,3256.4,3256.0,0.4658]
[1736482148456,3.2078,3256.4,3256.0,0.4658]
[1736482148760,3.2078,3256.4,3256.3,0.30714]
[1736482148954,3.2078,3256.4,3256.0,0.4658]
[1736482148955,0.4539,3256.8,3256.1,3.2078]
[1736482149156,0.76099,3256.8,3256.5,3.2078]
[1736482149358,0.76099,3256.8,3256.6,0.4658]
[1736482149557,1.91379514,3257.0,3256.6,0.9073]
[1736482149860,12.5314508,3257.1,3256.7,0.30709]
[1736482149861,12.0858508,3257.1,3256.7,0.30709]
[1736482150061,12.0858508,3257.1,3256.7,0.74129]
[1736482150263,12.3929208,3257.1,3256.7,0.74129]
[1736482150757,12.0858508,3257.1,3256.7,0.74129]
[1736482150959,12.3929208,3257.1,3256.7,0.74129]
[1736482151165,0.30707,3257.1,3256.7,0.74129]
[1736482152458,1.91379514,3257.3,3256.7,0.4342]
[1736482152659,1.91379514,3257.3,3256.8,0.30708]
[1736482152861,2.22083514,3257.3,3256.8,0.30709]
[1736482154267,0.30706,3257.2,3256.7,0.4342]
[1736482154569,0.30707,3257.1,3256.7,0.4342]
[1736482154861,1.91379514,3257.3,3256.7,0.4342]
[1736482155070,0.30706,3257.2,3256.7,0.7413]
[1736482156159,0.30706,3257.2,3256.7,3.9491]
[1736482157262,1.91379514,3257.3,3256.7,3.9491]
[1736482157765,0.30706,3257.1,3256.7,3.9491]
[1736482159865,0.30705,3257.2,3256.7,3.642]
[1736482160067,0.30709,3256.9,3256.7,3.642]
[1736482161268,0.30709,3256.8,3256.7,3.642]
[1736482161468,0.30709,3256.8,3256.7,3.2078]
[1736482161966,0.4419,3256.9,3256.7,3.2078]
[1736482161967,1.20609,3256.9,3256.7,3.2078]
[1736482163067,0.899,3256.9,3256.7,3.2078]
[1736482163262,1.20609,3256.9,3256.7,3.2078]
[1736482163462,0.74899,3256.9,3256.7,3.2078]
[1736482163866,0.30709,3256.9,3256.7,3.2078]
[1736482164769,0.4388,3257.2,3256.7,3.2078]
[1736482164969,0.30706,3257.2,3256.8,0.30709]
[1736482165368,0.30706,3257.1,3256.8,0.30709]
[1736482165972,0.30706,3257.1,3256.7,3.5149]
[1736482166367,0.30706,3257.1,3256.7,3.2078]
[1736482166672,0.30706,3257.2,3256.8,0.30709]
[1736482167672,0.30706,3257.2,3256.8,3.51489]
[1736482169671,0.30706,3257.2,3256.8,0.30709]
[1736482169876,0.30706,3257.2,3256.8,3.51489]
[1736482170177,0.30705,3257.3,3256.8,3.2078]
[1736482170377,0.74584,3257.4,3257.0,0.30707]
[1736482170578,2.911,3257.9,3257.2,3.2078]
[1736482170875,0.42506115,3258.3,3258.0,0.30698]
[1736482171176,0.42506115,3258.3,3258.0,44.0078]
[1736482171379,0.30694,3258.4,3258.0,40.8]
[1736482171577,0.30695,3258.3,3258.0,44.0078]
[1736482171976,0.30693,3258.6,3258.0,45.24178]
[1736482172178,0.30692,3258.7,3258.3,0.30695]
[1736482172479,0.30692,3258.7,3258.0,44.9348]
[1736482172480,0.78311,3258.8,3258.1,0.4589]
[1736482172777,0.4762,3258.8,3258.1,0.4589]
[1736482172972,0.4762,3258.8,3258.4,0.30694]
[1736482173372,0.30691,3258.7,3258.3,0.30695]
[1736482174472,0.4762,3258.8,3258.1,0.4589]
[1736482174473,0.30693,3258.6,3258.1,0.4589]
[1736482174675,0.30693,3258.6,3258.2,0.30696]
[1736482175281,0.30693,3258.6,3258.1,0.76587]
[1736482176978,0.30694,3258.5,3258.1,0.76587]
[1736482177482,0.4762,3258.8,3258.2,0.30696]
[1736482177483,0.30693,3258.6,3258.2,0.30696]
[1736482177779,0.30694,3258.5,3258.1,0.76586]
[1736482177979,0.4762,3258.8,3258.1,0.76586]
[1736482178181,0.30694,3258.4,3258.1,0.4589]
[1736482179583,0.30696,3258.3,3258.1,0.4589]
[1736482179882,0.4762,3258.8,3258.1,0.4589]
[1736482180083,0.30695,3258.4,3258.1,0.76587]
[1736482180475,3.2078,3258.6,3258.0,4.1348]
[1736482180681,0.30697,3258.1,3258.0,4.1348]
[1736482182985,0.30697,3258.1,3258.0,0.927]
[1736482183282,3.2078,3258.6,3257.8,3.2078]
[1736482183485,0.30701,3257.8,3257.4,5.42862514]
[1736482183682,3.2078,3258.2,3257.5,0.4447]
[1736482183981,0.30701,3257.7,3257.6,0.4379]
[1736482184176,0.30701,3257.7,3257.6,41.2379]
[1736482184376,0.4424,3258.1,3257.6,41.2379]
[1736482184583,0.30696,3258.2,3257.9,0.30699]
[1736482184778,0.30694,3258.4,3258.1,0.30697]
[1736482184972,0.30694,3258.4,3258.2,3.2078]
[1736482185173,0.30694,3258.4,3258.3,0.4379]
[1736482193691,0.30692,3258.7,3258.3,0.4379]
[1736482193887,0.4424,3258.8,3258.3,0.9149]
[1736482194089,0.30693,3258.6,3258.3,1.22185]
[1736482196387,0.4424,3258.8,3258.3,0.9149]
[1736482196587,0.30693,3258.6,3258.3,1.22185]
[1736482206408,0.4773,3259.2,3258.3,2.82869514]
[1736482206595,0.4773,3259.2,3258.6,0.30692]
[1736482206596,0.3069,3258.9,3258.6,0.30692]
[1736482207099,0.3069,3258.9,3258.7,41.2319]
[1736482209101,0.9262,3259.2,3258.7,41.2319]
[1736482209401,0.3069,3258.9,3258.7,41.2319]
[1736482209602,0.3069,3258.8,3258.7,41.2319]
[1736482215999,0.3069,3258.8,3258.7,0.4319]
[1736482217195,0.4707,3258.8,3258.5,44.0078]
[1736482217392,0.30696,3258.2,3258.1,0.4474]
[1736482217909,0.30696,3258.2,3258.1,40.8]
[1736482218402,0.30698,3258.0,3257.8,0.4757]
[1736482218799,0.30698,3258.0,3257.9,40.8]
[1736482221207,0.30699,3257.9,3257.8,0.4757]
[1736482221998,0.30699,3257.9,3257.8,41.2757]
[1736482224408,0.30698,3258.1,3257.8,41.58269]
[1736482224604,0.30696,3258.2,3257.9,0.30698]
[1736482225013,12.0858508,3258.4,3257.8,41.2757]
[1736482225307,0.30697,3258.1,3257.8,41.58269]
[1736482225511,12.0858508,3258.4,3257.8,41.58269]
[1736482225706,0.30696,3258.2,3257.8,41.58269]
[1736482227310,12.0858508,3258.4,3257.8,41.58269]
[1736482227712,0.30697,3258.1,3257.8,41.58269]
[1736482228213,12.0858508,3258.4,3257.8,41.58269]
[1736482228414,0.30696,3258.2,3257.8,41.58269]
[1736482229104,12.0858508,3258.4,3257.8,41.2757]
[1736482229306,0.30699,3257.9,3257.8,41.2757]
[1736482229506,0.30699,3257.9,3257.8,0.4757]
[1736482229911,0.30699,3257.9,3257.8,41.2757]
[1736482239515,0.30702,3257.6,3257.5,0.4693]
[1736482240409,3.2078,3258.0,3257.5,0.4693]
[1736482240410,3.2078,3258.0,3257.5,0.9415]
[1736482240614,0.30699,3257.9,3257.7,3.2078]
[1736482240919,0.30699,3257.9,3257.8,40.8]
[1736482242617,0.307,3257.8,3257.7,3.2078]
[1736482243015,0.307,3257.8,3257.7,44.0078]
[1736482245121,0.30698,3258.0,3257.7,44.3148]
[1736482246327,0.30698,3258.0,3257.7,44.31481]
[1736482246624,0.30698,3258.0,3257.7,44.0078]
[1736482246926,0.30698,3258.0,3257.7,44.31481]
[1736482248836,0.30698,3258.0,3257.7,44.0078]
[1736482249740,0.4662,3258.1,3257.7,44.31481]
[1736482249934,0.4662,3258.1,3257.7,44.0078]
[1736482250133,0.307,3257.8,3257.7,44.0078]
[1736482255041,0.307,3257.8,3257.7,40.8]
[1736482260450,0.90520045,3257.8,3257.5,4.1493]
[1736482260639,0.30701,3257.7,3257.5,4.45632]
[1736482260946,0.30701,3257.7,3257.5,45.25632]
[1736482262949,0.4324,3257.9,3257.5,44.9493]
[1736482263452,0.30701,3257.7,3257.5,45.25632]
[1736482263844,0.30701,3257.8,3257.6,0.30702]
[1736482264657,0.30699,3257.9,3257.7,0.307]
[1736482264850,0.30699,3257.9,3257.8,0.4514]
[1736482267040,0.307,3257.8,3257.7,3.2078]
[1736482268155,0.30699,3257.9,3257.7,3.5148]
[1736482268853,0.30699,3257.9,3257.8,0.307]
[1736482269053,0.30699,3257.9,3257.7,3.5148]
[1736482269556,0.30698,3258.0,3257.8,0.30699]
[1736482269953,12.05532836,3258.3,3257.9,0.90520045]
[1736482270148,12.05532836,3258.3,3258.2,0.30696]
[1736482270551,12.05532836,3258.6,3258.2,1.37040045]
[1736482270756,12.05532836,3258.6,3258.5,3.51473]
[1736482270958,12.05532836,3258.6,3258.5,44.31473]
[1736482272049,12.05532836,3258.6,3258.5,45.21993045]
[1736482272253,11.61122836,3258.6,3258.5,50.21993045]
[1736482272558,10.29558836,3258.6,3258.5,51.1251309]
[1736482272758,7.99339536,3258.6,3258.5,51.1251309]
[1736482273056,0.42506115,3259.7,3259.6,0.30683]
[1736482273253,13.17507403,3259.8,3259.7,0.30682]
[1736482273448,0.0115,3260.3,3259.7,0.4546]
[1736482273656,0.0115,3260.3,3259.9,1.21199045]
[1736482273949,0.31827,3260.3,3259.9,1.21199045]
[1736482274154,0.0115,3260.3,3259.9,0.90520045]
[1736482274355,0.30678,3260.2,3259.9,0.90520045]
[1736482274858,0.30678,3260.2,3259.8,41.56561]
[1736482275257,0.91670045,3260.3,3259.8,41.56561]
[1736482275460,0.30678,3260.2,3259.8,41.56561]
[1736482275854,0.0115,3260.3,3259.8,41.2588]
[1736482276156,0.30678,3260.1,3259.8,41.2588]
[1736482276658,0.0115,3260.3,3259.8,41.2588]
[1736482276959,0.0115,3260.3,3259.6,3.2078]
[1736482276960,0.30682,3259.8,3259.6,3.2078]
[1736482277256,1.92103007,3260.3,3259.6,3.2078]
[1736482277257,0.30682,3259.7,3259.6,3.2078]
[1736482277654,0.30683,3259.6,3259.4,0.4616]
[1736482278052,0.4735,3259.9,3259.4,0.4616]
[1736482278256,0.30684,3259.5,3259.2,3.6443]
[1736482278456,0.30684,3259.5,3259.2,4.1234]
[1736482278652,0.30682,3259.7,3259.3,0.30685]
[1736482279151,0.30683,3259.6,3259.3,0.30685]
[1736482279656,0.30683,3259.6,3259.2,4.1234]
[1736482279958,0.30683,3259.6,3259.3,0.30685]
[1736482280459,0.30683,3259.6,3259.2,4.43026]
[1736482280862,0.30683,3259.6,3259.3,0.30685]
[1736482281456,0.4735,3259.9,3259.2,4.43026]
[1736482281658,0.30683,3259.6,3259.2,4.1234]
[1736482281856,0.30683,3259.6,3259.3,0.30685]
[1736482282762,0.30683,3259.6,3259.4,40.8]
[1736482282957,0.30684,3259.5,3259.4,40.8]
[1736482283158,0.30683,3259.7,3259.4,40.8]
[1736482283965,0.4735,3259.9,3259.4,40.8]
[1736482284167,4.156,3260.6,3259.4,40.8]
[1736482284168,0.30678,3260.2,3259.7,0.30681]
[1736482284465,0.73875,3260.5,3260.1,0.30678]
[1736482284659,0.432,3260.5,3260.2,0.74387]
[1736482285162,0.432,3260.5,3260.3,0.30676]
[1736482285364,17.33190647,3261.1,3260.3,0.30676]
[1736482285662,0.3067,3261.0,3260.7,0.30672]
[1736482285968,3.51447,3261.4,3260.8,0.4371]
[1736482286163,0.432,3261.5,3260.9,40.8]
[1736482286361,0.30667,3261.3,3261.0,3.2078]
[1736482286670,0.432,3261.5,3261.0,3.2078]
[1736482286858,0.73865,3261.5,3261.0,3.51449]
[1736482287063,0.57648142,3261.9,3260.9,40.8]
[1736482287064,0.30661,3261.9,3261.5,0.30665]
[1736482287264,0.30659,3262.1,3261.5,0.30664]
[1736482287562,3.2078,3262.2,3261.4,5.11733007]
[1736482287764,0.30659,3262.2,3261.8,3.2078]
[1736482288468,0.30658,3262.3,3261.8,3.51442]
[1736482288665,0.30657,3262.3,3261.8,3.2078]
[1736482288865,0.30657,3262.3,3261.8,3.51442]
[1736482289069,0.4559,3262.4,3261.8,3.51442]
[1736482289367,0.30658,3262.3,3261.8,3.51442]
[1736482290868,0.30659,3262.2,3261.8,3.2078]
[1736482291365,1.90953007,3262.3,3261.8,3.2078]
[1736482291575,0.30659,3262.1,3261.8,3.2078]
[1736482291873,0.30659,3262.1,3261.9,40.8]
[1736482292465,0.30659,3262.1,3261.8,3.2078]
[1736482292870,0.30659,3262.1,3261.8,44.0078]
[1736482293363,1.90953007,3262.3,3261.8,44.0078]
[1736482293559,0.30659,3262.2,3261.8,3.2078]
[1736482294368,0.3066,3262.0,3261.8,3.2078]
[1736482294566,0.4559,3262.4,3261.8,3.2078]
[1736482294768,0.30652,3262.9,3262.3,0.30657]
[1736482295072,0.30652,3262.9,3262.2,3.2078]
[1736482295073,0.30652,3262.9,3262.4,0.76876]
[1736482295375,1.90953007,3262.9,3262.4,0.4622]
[1736482295675,0.30655,3262.6,3262.2,3.2078]
[1736482295868,0.30654,3262.7,3262.2,3.51438]
[1736482296174,0.30653,3262.8,3262.2,3.2078]
[1736482296473,5.11733007,3263.4,3262.6,3.2078]
[1736482296666,0.30652,3262.9,3262.6,3.2066512]
[1736482296872,0.30652,3263.0,3262.6,3.2066512]
[1736482297175,0.30652,3262.9,3262.6,3.2066512]
[1736482297371,3.2078,3263.4,3262.6,3.2066512]
[1736482297672,0.4329,3263.6,3262.7,0.4589]
[1736482297869,1.90953007,3263.5,3263.0,3.2078]
[1736482298176,1.90953007,3263.5,3262.7,0.4589]
[1736482298376,0.30647,3263.4,3262.7,0.4589]
[1736482298575,2.21600007,3263.5,3262.7,0.4589]
[1736482298772,2.21600007,3263.5,3263.0,3.2078]
[1736482299070,1.90953007,3263.5,3263.0,3.2078]
[1736482299275,0.30647,3263.5,3263.0,3.2078]
[1736482299777,0.42276316,3265.7,3263.8,3.2078]
[1736482300073,0.42276316,3265.7,3265.6,5.42359007]
[1736482300473,3.2078,3266.5,3265.6,5.11733007]
[1736482300669,3.2078,3266.5,3266.0,3.2078]
[1736482300870,3.2078,3266.9,3266.0,5.11733007]
[1736482301065,1.90953007,3267.1,3266.4,3.2078]
[1736482301273,0.30613,3267.0,3266.4,3.2078]
[1736482301468,1.90953007,3266.5,3266.0,3.2078]
[1736482301668,5.11733007,3266.2,3265.4,3.6564]
[1736482301874,5.11733007,3266.2,3265.4,3.2078]
[1736482301875,0.30623,3266.1,3265.4,3.2078]